bitfinex/quotes_SOLUSD_20250903
["timestamp","ask_amount","ask_price","bid_price","bid_amount"]
[1756924643716,42.4083062,210.03,210.02,0.1]
[1756924643917,47.16953078,210.03,210.02,0.1]
[1756924644297,42.4083062,210.03,210.02,0.1]
[1756924644999,42.3883062,210.03,210.02,0.1]
[1756924645200,47.14953078,210.03,210.02,0.1]
[1756924645902,42.3883062,210.03,210.02,0.1]
[1756924646317,37.71,210.03,210.02,0.1]
[1756924646526,30.76080272,210.05,210.02,0.1]
[1756924646721,37.02,210.04,210.02,0.1]
[1756924646930,5.3483062,210.04,210.02,0.1]
[1756924647224,26.0,210.05,210.02,0.1]
[1756924647429,37.06,210.04,210.02,0.1]
[1756924647729,37.06,210.04,210.02,0.77]
[1756924647898,37.06,210.04,210.02,0.1]
[1756924648103,4.6783062,210.05,210.02,0.1]
[1756924648326,37.08,210.04,210.02,0.1]
[1756924648657,37.75,210.04,210.02,0.1]
[1756924648811,37.08,210.04,210.02,0.1]
[1756924649347,37.08,210.03,210.02,0.77]
[1756924649517,37.08,210.03,210.02,0.1]
[1756924650330,9.43888719,210.06,210.02,0.77]
[1756924650518,37.08,210.04,210.02,0.77]
[1756924651245,37.08,210.04,210.02,0.1]
[1756924651551,5.43058099,210.06,210.02,0.1]
[1756924651731,37.08,210.04,210.02,0.77]
[1756924651959,0.67,210.03,210.02,0.1]
[1756924652241,37.08,210.03,210.02,0.1]
[1756924652939,42.4283062,210.03,210.02,0.1]
[1756924653345,68.4283062,210.03,210.02,0.1]
[1756924653642,68.75262934,210.03,210.02,0.1]
[1756924653946,73.51385392,210.03,210.02,0.1]
[1756924654247,68.83554772,210.03,210.02,0.1]
[1756924654425,73.51385392,210.03,210.02,0.1]
[1756924656617,80.17893377,210.03,210.02,0.1]
[1756924657127,43.05893377,210.03,210.02,0.1]
[1756924657346,80.19893377,210.03,210.02,0.1]
[1756924657653,43.05893377,210.03,210.02,0.1]
[1756924657837,80.19893377,210.03,210.02,0.1]
[1756924659350,80.17893377,210.03,210.02,0.1]
[1756924659530,38.38062757,210.03,210.02,0.1]
[1756924659845,77.02019187,210.03,210.02,0.1]
[1756924660052,80.17635733,210.03,210.02,0.1]
[1756924661044,80.19635733,210.03,210.02,0.1]
[1756924661639,54.19635733,210.03,210.02,0.1]
[1756924663050,26.0,210.01,210.0,100.0]
[1756924663235,68.66046777,210.01,210.0,100.0]
[1756924663751,73.42214578,210.01,210.0,100.0]
[1756924664153,68.74383958,210.01,210.0,100.0]
[1756924664337,73.42214578,210.01,210.0,100.0]
[1756924665238,31.60383958,210.01,210.0,100.0]
[1756924665541,36.28214578,210.01,210.0,100.0]
[1756924665729,73.40214578,210.01,210.0,100.0]
[1756924666154,68.72383958,210.01,210.0,100.0]
[1756924666356,84.91593387,210.01,210.0,100.0]
[1756924667153,43.09004121,210.01,210.0,100.0]
[1756924667355,80.21004121,210.01,210.0,100.0]
[1756924667654,43.09004121,210.01,210.0,100.0]
[1756924667835,80.21004121,210.01,210.0,100.0]
[1756924670560,85.01223519,210.01,210.0,100.0]
[1756924670780,37.42741187,210.01,210.0,100.71]
[1756924670951,4.6783062,210.01,210.0,100.71]
[1756924671267,50.05253247,210.01,210.0,100.0]
[1756924671477,48.81970683,210.01,210.0,100.0]
[1756924671659,51.81763759,210.01,210.0,100.0]
[1756924671970,14.71763759,210.01,210.0,100.0]
[1756924672264,77.81763759,210.01,210.0,100.0]
[1756924672461,14.71763759,210.01,210.0,100.0]
[1756924672670,51.53331445,210.01,210.0,100.0]
[1756924673260,48.53538369,210.01,210.0,100.0]
[1756924673450,51.53331445,210.01,210.0,100.0]
[1756924673853,51.81763759,210.01,210.0,100.0]
[1756924674067,52.51763759,210.01,210.0,100.0]
[1756924674946,51.81763759,210.01,210.0,100.0]
[1756924675163,52.51763759,210.01,210.0,100.0]
[1756924675883,66.83778843,210.01,210.0,100.0]
[1756924676553,52.49763759,210.01,210.0,100.0]
[1756924677255,51.79763759,210.01,210.0,100.0]
[1756924677455,14.71763759,210.01,210.0,100.0]
[1756924677654,44.83960877,210.01,210.0,100.71]
[1756924677990,52.50191664,210.01,210.0,100.03]
[1756924678473,52.50191664,210.01,210.0,75.55047497]
[1756924679255,66.82206748,210.01,210.0,75.55047497]
[1756924680380,52.50191664,210.01,210.0,75.55047497]
[1756924680581,51.80191664,210.01,210.0,75.55047497]
[1756924680872,52.50191664,210.01,210.0,75.55047497]
[1756924681681,66.82206747,210.01,210.0,75.55047497]
[1756924682778,89.24619344,210.01,210.0,51.12692711]
[1756924682976,0.28432314,210.0,209.99,1e-08]
[1756924683183,18.78877059,210.0,209.99,1e-08]
[1756924683356,19.48877059,210.0,209.99,1e-08]
[1756924683877,44.55704755,210.0,209.99,1e-08]
[1756924684064,19.48877059,210.0,209.99,1e-08]
[1756924684377,0.28432314,209.98,209.97,0.03]
[1756924684682,64.44066598,209.98,209.97,0.03]
[1756924684869,61.31383615,209.98,209.97,0.03]
[1756924685180,63.2237366,209.98,209.97,0.03]
[1756924685479,60.10158175,209.98,209.97,0.03]
[1756924685774,63.262182,209.98,209.97,0.03]
[1756924685961,52.162182,209.98,209.97,0.03]
[1756924686168,63.26228974,209.98,209.97,0.03]
[1756924686378,64.86394006,209.98,209.97,0.03]
[1756924688081,10.47041529,209.98,209.97,0.03]
[1756924688382,51.26834605,209.98,209.97,0.03]
[1756924688556,0.28432314,209.94,209.91,0.71]
[1756924688756,2.99793076,209.92,209.91,0.71]
[1756924688985,37.1,209.93,209.89,0.81]
[1756924689158,37.1,209.93,209.89,0.1]
[1756924689357,2.99793076,209.9,209.89,0.1]
[1756924689682,2.99793076,209.9,209.89,0.81]
[1756924689683,40.09793076,209.9,209.89,0.81]
[1756924690465,44.86210417,209.9,209.89,0.81]
[1756924691264,45.14642731,209.9,209.89,0.1]
[1756924692383,45.14642731,209.9,209.89,0.81]
[1756924692959,8.04642731,209.9,209.89,0.81]
[1756924693186,45.14642731,209.9,209.89,0.81]
[1756924693686,8.04642731,209.9,209.89,0.81]
[1756924693895,45.12642731,209.9,209.89,0.81]
[1756924694080,8.04642731,209.9,209.89,0.81]
[1756924694263,45.12642731,209.9,209.89,0.1]
[1756924695686,8.04642731,209.9,209.89,0.1]
[1756924695984,45.10642731,209.9,209.89,0.1]
[1756924697784,45.76642731,209.9,209.89,0.1]
[1756924698081,5.04849655,209.9,209.89,0.81]
[1756924698289,42.10849655,209.9,209.89,0.1]
[1756924698589,45.10642731,209.9,209.89,0.1]
[1756924699293,8.04642731,209.9,209.89,0.81]
[1756924699687,45.12642731,209.9,209.89,0.81]
[1756924700284,45.12642731,209.9,209.86,0.03]
[1756924700285,26.0,209.87,209.86,0.03]
[1756924700488,26.0,209.87,209.84,0.03]
[1756924700489,13.59559401,209.86,209.84,0.03]
[1756924700686,40.4222539,209.85,209.84,0.03]
[1756924701083,45.84756245,209.85,209.84,0.03]
[1756924701577,0.28432314,209.81,209.74,0.71]
[1756924701776,0.28432314,209.81,209.6,20.0]
[1756924701777,41.1022539,209.81,209.7,16.59352477]
[1756924702008,41.1022539,209.81,209.76,0.71]
[1756924702290,55.43540408,209.81,209.68,13.59559401]
[1756924702494,18.27540408,209.81,209.8,1e-08]
[1756924702696,55.47540408,209.81,209.8,1e-08]
[1756924702870,18.27540408,209.81,209.8,1e-08]
[1756924703074,23.04162113,209.81,209.8,1e-08]
[1756924703271,60.26162113,209.81,209.8,1e-08]
[1756924703878,23.04162113,209.81,209.8,1e-08]
[1756924704190,60.24162113,209.81,209.8,1e-08]
[1756924704566,22.38162113,209.81,209.8,1e-08]
[1756924704802,8.04847095,209.81,209.8,0.71000001]
[1756924704967,8.04847095,209.81,209.8,1e-08]
[1756924705169,42.25054019,209.81,209.8,1e-08]
[1756924705476,71.24847095,209.81,209.8,0.71000001]
[1756924705878,66.21793076,209.81,209.8,0.71000001]
[1756924706094,40.21793076,209.81,209.8,0.71000001]
[1756924706280,4.76599037,209.82,209.8,0.71000001]
[1756924706483,4.76508148,209.86,209.8,0.71000001]
[1756924706670,2.99793076,209.84,209.8,0.71000001]
[1756924706871,37.22,209.83,209.8,0.71000001]
[1756924707071,7.7633936,209.85,209.8,0.71000001]
[1756924707377,37.24,209.84,209.8,0.71000001]
[1756924707585,7.7633936,209.85,209.8,0.71000001]
[1756924707795,37.24,209.83,209.8,0.71000001]
[1756924708698,37.24,209.83,209.8,3.70793077]
[1756924709000,37.22,209.83,209.81,0.71]
[1756924710299,37.22,209.83,209.82,0.71]
[1756924710490,40.21793076,209.83,209.82,0.71]
[1756924710694,44.98369352,209.83,209.82,0.71]
[1756924711103,44.98369352,209.83,209.8,1e-08]
[1756924711417,44.98369352,209.83,209.81,0.71]
[1756924711598,44.98369352,209.83,209.82,0.71]
[1756924711784,37.22,209.83,209.82,0.71]
[1756924712805,7.76330872,209.85,209.82,0.71]
[1756924713006,37.2,209.84,209.82,0.71]
[1756924714015,37.2,209.84,209.83,0.71]
[1756924714578,37.22,209.86,209.83,0.71]
[1756924714801,37.22,209.86,209.83,3.70793076]
[1756924714987,37.22,209.86,209.84,0.71]
[1756924715189,37.22,209.86,209.85,0.71]
[1756924715385,37.22,209.86,209.83,0.71]
[1756924715604,37.22,209.86,209.81,2.99793076]
[1756924715907,37.22,209.86,209.84,0.71]
[1756924716102,44.98311175,209.86,209.82,0.71]
[1756924716308,37.22,209.86,209.83,0.71]
[1756924716485,26.0,209.87,209.84,0.71]
[1756924716796,37.22,209.88,209.85,3.70793076]
[1756924716984,37.22,209.88,209.86,0.71]
[1756924717179,37.22,209.88,209.87,0.71]
[1756924717489,7.76213609,209.9,209.87,0.71]
[1756924717690,37.22,209.89,209.88,0.71]
[1756924719208,37.2,209.89,209.88,0.71]
[1756924719586,0.66,209.93,209.88,0.71]
[1756924719587,2.99793076,209.92,209.88,0.71]
[1756924719901,37.2,209.91,209.89,0.71]
[1756924720406,29.2822539,209.94,209.9,0.71]
[1756924720605,26.0,209.93,209.91,0.71]
[1756924720909,37.2,209.93,209.91,0.71]
[1756924721590,37.2,209.93,209.92,0.71]
[1756924721884,37.2,209.94,209.92,0.71]
[1756924722092,37.2,209.95,209.93,0.71]
[1756924722283,45.02060125,209.97,209.93,0.71]
[1756924722491,45.02060125,209.97,209.93,0.21]
[1756924722707,37.26,209.97,209.93,0.21]
[1756924722910,37.26,209.97,209.92,2.99793076]
[1756924723082,37.92,209.97,209.92,2.99793076]
[1756924723285,42.68263022,209.97,209.92,2.99793076]
[1756924723510,2.99793076,209.96,209.9,2.99793076]
[1756924723721,4.76303881,209.95,209.89,14.31946732]
[1756924723915,4.76303881,209.95,209.9,2.99793076]
[1756924724293,0.66,209.94,209.88,4.76458103]
[1756924724598,0.66,209.94,209.89,3.70793076]
[1756924724793,0.66,209.94,209.9,2.99793076]
[1756924724983,2.99793076,209.91,209.83,0.71]
[1756924725183,2.99793076,209.89,209.83,15.03288558]
[1756924725389,2.99793076,209.89,209.83,3.70793076]
[1756924725798,7.76237388,209.89,209.83,3.70793076]
[1756924726100,2.99793076,209.87,209.82,14.35356944]
[1756924726301,2.99793076,209.87,209.83,0.71]
[1756924726506,5.42444312,209.89,209.83,0.71]
[1756924726507,2.99793076,209.88,209.83,0.71]
[1756924726911,0.66,209.87,209.82,7.79391722]
[1756924727212,4.76444312,209.89,209.83,0.71]
[1756924727418,7.76237388,209.89,209.83,3.70793076]
[1756924727597,2.99793076,209.9,209.85,2.99793076]
[1756924727801,40.17793076,209.91,209.86,0.71]
[1756924728313,40.83793076,209.91,209.86,0.71]
[1756924728616,37.18,209.91,209.86,8.47299313]
[1756924728813,3.65793076,209.93,209.87,3.70793076]
[1756924728992,37.18,209.92,209.87,3.70793076]
[1756924729194,37.18,209.92,209.88,0.71]
[1756924729898,3.65793076,209.93,209.88,0.71]
[1756924730213,8.42143375,209.93,209.88,0.71]
[1756924730423,2.99793076,209.91,209.85,2.99793076]
[1756924730597,0.66,209.9,209.84,2.99793076]
[1756924730793,3.65793076,209.9,209.84,2.99793076]
[1756924730995,0.66,209.89,209.82,0.03]
[1756924731201,2.99793076,209.85,209.82,0.03]
[1756924731390,63.46432314,209.9,209.82,0.03]
[1756924731391,0.66,209.84,209.82,0.03]
[1756924732004,5.42554852,209.84,209.82,0.03]
[1756924732402,0.66,209.84,209.82,0.03]
[1756924734331,0.66,209.83,209.82,0.03]
[1756924736134,4.76508148,209.86,209.82,4.71953955]
[1756924736435,42.56536529,209.85,209.82,4.71953955]
[1756924736731,0.66,209.84,209.82,0.03]
[1756924737206,0.66,209.83,209.82,0.03]
[1756924737524,47.25490484,209.85,209.82,0.03]
[1756924737695,26.0,209.86,209.82,4.71953955]
[1756924737901,0.66,209.85,209.82,4.71953955]
[1756924738321,67.9051513,209.86,209.82,4.71953955]
[1756924738525,31.4251513,209.86,209.82,4.71953955]
[1756924738739,26.66,209.89,209.85,4.68953955]
[1756924739032,37.8,209.88,209.84,4.68953955]
[1756924739238,0.66,209.87,209.84,4.68953955]
[1756924740029,37.14,209.88,209.84,4.68953955]
[1756924740227,0.28432314,209.92,209.86,4.68953955]
[1756924740532,0.66,209.91,209.87,4.68953955]
[1756924740699,37.14,209.91,209.87,4.68953955]
[1756924741035,37.8,209.9,209.88,4.68953955]
[1756924741205,37.14,209.91,209.88,4.68953955]
[1756924741406,0.66,209.9,209.89,4.68953955]
[1756924741605,0.66,209.9,209.84,5.47550008]
[1756924741805,0.66,209.9,209.88,4.68953955]
[1756924742211,37.14,209.91,209.89,4.68953955]
[1756924742611,0.06,209.97,209.9,5.39953955]
[1756924742805,26.0,209.95,209.93,4.68953955]
[1756924743312,26.66,209.95,209.93,4.68953955]
[1756924743715,30.76317309,209.95,209.93,4.68953955]
[1756924743912,0.66,209.94,209.93,4.68953955]
[1756924744114,0.66,209.94,209.92,4.68953955]
[1756924744309,0.66,209.94,209.93,4.68953955]
[1756924744526,0.06,209.97,209.93,4.68953955]
[1756924744527,37.14,209.96,209.93,4.68953955]
[1756924744830,0.66,209.95,209.94,4.68953955]
[1756924745226,0.66,209.95,209.92,4.68953955]
[1756924746237,37.14,209.96,209.92,4.68953955]
[1756924746437,0.66,209.95,209.91,4.68953955]
[1756924746639,5.34953955,209.94,209.89,4.68953955]
[1756924746938,0.66,209.93,209.89,4.68953955]
[1756924747637,0.66,209.92,209.89,4.68953955]
[1756924747832,0.66,209.92,209.9,4.68953955]
[1756924748136,26.66,209.91,209.82,0.74]
[1756924748318,41.88417341,209.9,209.85,4.68953955]
[1756924748514,0.66,209.89,209.84,4.68953955]
[1756924748711,5.34953955,209.88,209.82,0.03]
[1756924748932,0.66,209.88,209.82,0.03]
[1756924749112,4.68953955,209.87,209.82,4.71953955]
[1756924749318,0.66,209.86,209.82,0.03]
[1756924749728,0.66,209.85,209.82,0.03]
[1756924750136,0.66,209.84,209.82,0.03]
[1756924750332,5.42562899,209.84,209.82,0.03]
[1756924750937,4.76562899,209.84,209.82,0.03]
[1756924751324,5.42562899,209.84,209.82,0.03]
[1756924752237,5.48562899,209.84,209.82,0.03]
[1756924755126,0.72,209.83,209.82,0.03]
[1756924756850,5.48536091,209.85,209.82,4.71953955]
[1756924757035,41.84509831,209.86,209.82,4.71953955]
[1756924757236,0.72,209.85,209.82,4.71953955]
[1756924758432,5.48531634,209.85,209.82,4.71953955]
[1756924758745,37.82,209.87,209.82,4.71953955]
[1756924759057,41.84485443,209.87,209.83,4.68953955]
[1756924759262,0.72,209.86,209.83,4.68953955]
[1756924760748,42.56485443,209.87,209.83,4.68953955]
[1756924760957,0.72,209.86,209.83,4.68953955]
[1756924761155,0.72,209.92,209.85,4.68953955]
[1756924761453,37.08,209.9,209.86,4.68953955]
[1756924761654,0.72,209.89,209.84,10.87309791]
[1756924761852,0.72,209.88,209.84,15.56263746]
[1756924762042,0.72,209.88,209.85,4.68953955]
[1756924762450,0.72,209.87,209.85,4.68953955]
[1756924762848,4.76481574,209.88,209.85,4.68953955]
[1756924763041,0.72,209.87,209.84,4.68953955]
[1756924763451,0.72,209.87,209.82,11.57309791]
[1756924763641,0.72,209.87,209.84,4.68953955]
[1756924764965,4.76508148,209.86,209.84,4.68953955]
[1756924765643,0.72,209.85,209.82,4.71953955]
[1756924765836,0.72,209.84,209.82,4.71953955]
[1756924766033,0.72,209.85,209.82,0.03]
[1756924766555,0.72,209.84,209.82,0.03]
[1756924766942,4.76576276,209.83,209.82,0.03]
[1756924767359,4.76576276,209.83,209.82,4.71953955]
[1756924768148,0.72,209.83,209.82,0.03]
[1756924768348,5.40953955,209.83,209.82,0.03]
[1756924769266,1.00432314,209.83,209.82,0.03]
[1756924769441,5.69386269,209.83,209.82,0.03]
[1756924769868,42.77386269,209.83,209.82,0.03]
[1756924770565,47.53962545,209.83,209.82,0.03]
[1756924771254,42.56576276,209.83,209.82,0.03]
[1756924771564,47.25530231,209.83,209.82,0.03]
[1756924771751,10.17530231,209.83,209.82,0.03]
[1756924772081,42.56576276,209.83,209.82,0.03]
[1756924772371,41.84576276,209.83,209.82,0.03]
[1756924772552,42.56576276,209.83,209.82,0.03]
[1756924773059,41.84576276,209.83,209.82,0.03]
[1756924773262,0.72,209.88,209.82,5.38953955]
[1756924773463,37.08,209.87,209.85,4.68953955]
[1756924774162,37.1,209.9,209.86,5.35953955]
[1756924774366,37.1,209.9,209.87,4.68953955]
[1756924774866,4.7644004,209.89,209.86,4.68953955]
[1756924775360,42.5842121,209.9,209.86,4.68953955]
[1756924776581,41.8642121,209.9,209.86,4.68953955]
[1756924776876,42.58392715,209.92,209.89,4.68953955]
[1756924777085,0.72,209.91,209.89,4.68953955]
[1756924777272,41.86392715,209.92,209.89,4.68953955]
[1756924777578,67.92353379,209.93,209.89,5.35953955]
[1756924777785,0.06,209.93,209.91,4.68953955]
[1756924778086,0.06,209.93,209.92,4.68953955]
[1756924778263,0.06,209.93,209.91,4.68953955]
[1756924778464,4.82353866,209.93,209.87,13.59559401]
[1756924778661,0.06,209.93,209.9,4.68953955]
[1756924778859,0.06,209.93,209.91,4.68953955]
[1756924781067,0.06,209.93,209.88,0.67]
[1756924781257,0.06,209.93,209.91,4.68953955]
[1756924781461,0.06,209.93,209.89,0.67]
[1756924781661,0.06,209.93,209.91,4.68953955]
[1756924781862,0.06,209.93,209.89,0.67]
[1756924782077,42.41953955,209.92,209.84,0.68]
[1756924782388,4.68953955,209.91,209.85,4.68953955]
[1756924782593,26.0,209.89,209.85,4.68953955]
[1756924782764,67.76953955,209.89,209.83,4.68953955]
[1756924782965,0.67,209.88,209.83,4.68953955]
[1756924783196,0.67,209.88,209.84,4.68953955]
[1756924783496,0.67,209.88,209.85,4.68953955]
[1756924783663,67.84455985,209.89,209.85,4.68953955]
[1756924784068,68.51455985,209.89,209.85,4.68953955]
[1756924785087,68.51455985,209.89,209.82,0.03]
[1756924785088,4.68953955,209.87,209.82,0.03]
[1756924785388,4.68953955,209.86,209.82,0.03]
[1756924785589,4.68953955,209.84,209.82,0.03]
[1756924786084,37.06,209.86,209.82,0.03]
[1756924786085,5.35953955,209.83,209.82,0.03]
[1756924786298,42.41953955,209.83,209.82,0.03]
[1756924787390,47.18530231,209.83,209.82,0.03]
[1756924789207,50.62436003,209.83,209.82,0.03]
[1756924789377,64.21995404,209.83,209.82,0.03]
[1756924793501,62.53410345,209.83,209.82,0.03]
[1756924794402,59.53041449,209.83,209.82,0.03]
[1756924794706,8.87482048,209.83,209.82,0.03]
[1756924794996,45.47945172,209.83,209.82,0.03]
[1756924795380,48.9176252,209.83,209.82,0.03]
[1756924796706,8.87393624,209.83,209.82,0.03]
[1756924796889,48.9176252,209.83,209.82,0.03]
[1756924799889,45.76377486,209.83,209.82,0.03]
[1756924800708,5.0500859,209.83,209.82,0.03]
[1756924800875,45.76377486,209.83,209.82,0.03]
[1756924801078,48.91644558,209.83,209.82,0.03]
[1756924801313,45.76377486,209.83,209.82,0.03]
[1756924804994,48.91507161,209.83,209.82,0.03]
[1756924805509,0.28432314,209.79,209.73,0.68]
[1756924805722,29.00368896,209.75,209.71,0.68]
[1756924805921,40.02368896,209.74,209.72,0.68]
[1756924806107,4.76803509,209.73,209.72,0.68]
[1756924806421,4.76803509,209.73,209.69,3.00368896]
[1756924806422,4.76803509,209.73,209.7,0.68]
[1756924806619,37.02,209.72,209.7,0.68]
[1756924806820,37.02,209.72,209.71,0.68]
[1756924807119,37.02,209.72,209.68,3.68368896]
[1756924807301,4.76784008,209.74,209.7,3.00368896]
[1756924807503,37.02,209.73,209.71,0.68]
[1756924807728,37.02,209.73,209.72,0.68]
[1756924807934,4.76739156,209.76,209.72,0.68]
[1756924808223,37.02,209.75,209.7,3.00368896]
[1756924808524,40.02368896,209.75,209.72,0.68]
[1756924809222,3.00368896,209.74,209.69,3.68368896]
[1756924809527,37.04,209.73,209.7,0.68]
[1756924810100,63.04,209.72,209.7,0.68]
[1756924810729,66.04368896,209.72,209.66,3.68368896]
[1756924810913,63.04,209.72,209.67,3.68368896]
[1756924811225,66.04368896,209.72,209.68,0.68]
[1756924811609,0.28432314,209.72,209.68,0.68]
[1756924811819,37.06,209.71,209.68,0.68]
[1756924812010,41.82868826,209.71,209.68,0.68]
[1756924812209,37.04,209.7,209.68,0.68]
[1756924813117,37.04,209.7,209.67,3.00368896]
[1756924813118,41.80874793,209.7,209.67,3.00368896]
[1756924813316,41.80874793,209.7,209.67,0.69]
[1756924813914,41.80874793,209.7,209.66,3.00368896]
[1756924814118,41.80874793,209.7,209.67,3.69368896]
[1756924814628,37.04,209.69,209.67,3.69368896]
[1756924814824,37.02,209.69,209.67,3.69368896]
[1756924815614,37.02,209.69,209.61,4.77076475]
[1756924815615,42.4489496,209.69,209.64,0.69]
[1756924815814,42.4489496,209.69,209.66,3.00368896]
[1756924816123,42.4489496,209.69,209.65,3.00368896]
[1756924816338,0.66,209.68,209.6,13.59559401]
[1756924816507,3.00368896,209.65,209.59,0.69]
[1756924816710,37.48,209.64,209.59,3.00368896]
[1756924816931,37.5,209.63,209.6,3.00368896]
[1756924817141,3.00368896,209.65,209.6,3.69368896]
[1756924817313,37.48,209.64,209.6,3.69368896]
[1756924817512,4.77030469,209.64,209.6,0.69]
[1756924817819,0.66,209.65,209.61,3.00368896]
[1756924818027,37.48,209.64,209.62,0.03]
[1756924818330,0.66,209.65,209.62,0.03]
[1756924818533,37.48,209.63,209.62,0.03]
[1756924818704,30.76966576,209.66,209.62,3.72368896]
[1756924818908,37.48,209.65,209.62,0.72]
[1756924819128,4.76966576,209.66,209.62,3.03368896]
[1756924819334,37.48,209.65,209.62,3.03368896]
[1756924819841,26.0,209.67,209.62,3.03368896]
[1756924819842,30.76940124,209.67,209.63,3.69368896]
[1756924820011,4.76921493,209.68,209.64,3.69368896]
[1756924820212,37.46,209.67,209.64,3.00368896]
[1756924820427,38.12,209.67,209.62,3.03368896]
[1756924820742,38.12,209.67,209.62,3.72368896]
[1756924821138,38.12,209.67,209.63,3.00368896]
[1756924821332,33.77271108,209.69,209.64,3.00368896]
[1756924821539,42.88938869,209.68,209.62,0.03]
[1756924821736,4.76898091,209.69,209.63,3.00368896]
[1756924822043,37.46,209.68,209.65,3.00368896]
[1756924822729,38.12,209.68,209.64,3.00368896]
[1756924822943,37.46,209.68,209.63,0.69]
[1756924823140,37.46,209.68,209.64,3.00368896]
[1756924823440,42.22923309,209.68,209.64,3.69368896]
[1756924824025,42.88923309,209.68,209.64,3.00368896]
[1756924824658,5.42923309,209.68,209.64,3.00368896]
[1756924824825,37.42,209.67,209.64,3.00368896]
[1756924825839,37.42,209.67,209.63,3.00368896]
[1756924826032,38.08,209.67,209.63,3.00368896]
[1756924826232,37.42,209.67,209.64,3.00368896]
[1756924826621,42.18949516,209.67,209.63,3.00368896]
[1756924826847,0.66,209.66,209.62,0.03]
[1756924827039,42.84949516,209.67,209.64,3.00368896]
[1756924828242,42.84949516,209.67,209.63,3.00368896]
[1756924828449,42.84949516,209.67,209.64,3.00368896]
[1756924829747,42.18949516,209.67,209.64,3.00368896]
[1756924829953,5.42976605,209.66,209.64,3.00368896]
[1756924830255,5.42976605,209.66,209.62,0.03]
[1756924830256,0.66,209.65,209.62,0.03]
[1756924830430,40.40368896,209.64,209.62,0.03]
[1756924830930,0.66,209.63,209.62,0.03]
[1756924831650,64.04,209.63,209.62,0.03]
[1756924831949,68.81030959,209.63,209.62,0.03]
[1756924834142,31.43030959,209.63,209.62,0.03]
[1756924834428,71.79399855,209.63,209.62,0.03]
[1756924835451,68.79030959,209.63,209.62,0.03]
[1756924835744,71.79399855,209.63,209.62,0.03]
[1756924838056,68.79030959,209.63,209.62,0.03]
[1756924838254,71.79399855,209.63,209.62,0.03]
[1756924838566,30.77030959,209.63,209.62,0.03]
[1756924838865,4.77011263,209.64,209.62,3.03368896]
[1756924839163,37.3,209.63,209.62,0.03]
[1756924839561,4.77011263,209.64,209.62,0.03]
[1756924839756,37.3,209.63,209.62,0.03]
[1756924840957,5.43030959,209.63,209.62,0.03]
[1756924841151,0.66,209.7,209.62,3.72368896]
[1756924841355,4.76848981,209.71,209.62,3.72368896]
[1756924841356,3.00368896,209.68,209.63,3.00368896]
[1756924841560,37.96,209.67,209.62,3.03368896]
[1756924841746,0.66,209.67,209.62,3.72368896]
[1756924841952,37.3,209.66,209.62,3.72368896]
[1756924842144,3.00368896,209.68,209.62,3.03368896]
[1756924842349,4.76848981,209.71,209.66,3.00368896]
[1756924842571,3.67368896,209.72,209.67,0.67]
[1756924842858,37.3,209.71,209.67,3.67368896]
[1756924843569,37.3,209.71,209.67,3.00368896]
[1756924843760,37.3,209.71,209.68,0.67]
[1756924844265,37.3,209.71,209.67,3.00368896]
[1756924844465,37.3,209.71,209.67,3.67368896]
[1756924845257,42.73858092,209.71,209.67,3.00368896]
[1756924845461,45.74226988,209.71,209.66,3.00368896]
[1756924845770,45.74226988,209.71,209.66,3.67368896]
[1756924845973,3.00368896,209.69,209.64,4.76988089]